[Event "*** Titled Tuesday Blitz"]
[Site "Chess.com"]
[Date "2020.04.14"]
[Round "3"]
[White "1lec"]
[Black "MusicCityMaster"]
[Result "1-0"]
[WhiteElo "2153"]
[BlackElo "2326"]
[TimeControl "180+1"]
[EndTime "10:27:31 PDT"]
[Termination "1lec won by resignation"]

1. e4 {[%clk 0:03:00.9]} 1... e6 {[%clk 0:02:58.5]} 2. d4 {[%clk 0:03:00.6]}
2... d5 {[%clk 0:02:58.8]} 3. Nd2 {[%clk 0:03:01.1]} 3... Nf6 {[%clk 0:02:58.4]}
4. e5 {[%clk 0:03:01.2]} 4... Nfd7 {[%clk 0:02:59]} 5. Bd3 {[%clk 0:03:01.6]}
5... c5 {[%clk 0:02:59.6]} 6. c3 {[%clk 0:03:02.2]} 6... Nc6 {[%clk 0:02:59.8]}
7. Ne2 {[%clk 0:03:02.7]} 7... cxd4 {[%clk 0:02:59.4]} 8. cxd4 {[%clk
0:03:03.6]} 8... f6 {[%clk 0:02:59.8]} 9. exf6 {[%clk 0:03:03.3]} 9... Nxf6
{[%clk 0:03:00.5]} 10. O-O {[%clk 0:03:02.2]} 10... Qc7 {[%clk 0:03:00.8]} 11.
Nf3 {[%clk 0:03:01.2]} 11... Bd6 {[%clk 0:03:00.8]} 12. Bd2 {[%clk 0:02:46.7]}
12... O-O {[%clk 0:02:58]} 13. Rc1 {[%clk 0:02:44.6]} 13... Ng4 {[%clk
0:02:38.5]} 14. h3 {[%clk 0:02:28.3]} 14... Bh2+ {[%clk 0:02:31.6]} 15. Kh1
{[%clk 0:02:24.1]} 15... Rxf3 {[%clk 0:02:27.4]} 16. gxf3 {[%clk 0:02:15.4]}
16... Nf6 {[%clk 0:02:18.4]} 17. f4 {[%clk 0:02:10.7]} 17... e5 {[%clk
0:01:57.3]} 18. Kxh2 {[%clk 0:01:58.9]} 18... Qd7 {[%clk 0:01:44.2]} 19. Ng1
{[%clk 0:01:28.5]} 19... e4 {[%clk 0:01:39]} 20. Be2 {[%clk 0:01:21.1]} 20...
Nxd4 {[%clk 0:01:38.1]} 21. Bc3 {[%clk 0:01:08.5]} 21... Nxe2 {[%clk 0:01:37.4]}
22. Qxe2 {[%clk 0:01:03.4]} 22... d4 {[%clk 0:01:37.5]} 23. Rcd1 {[%clk
0:00:51.7]} 23... d3 {[%clk 0:01:32.1]} 24. Qe3 {[%clk 0:00:50.6]} 24... Qf5
{[%clk 0:01:21.7]} 25. Bxf6 {[%clk 0:00:43.1]} 25... gxf6 {[%clk 0:01:20.2]} 26.
f3 {[%clk 0:00:42.5]} 26... exf3 {[%clk 0:01:07.2]} 27. Qxd3 {[%clk 0:00:38.6]}
27... Qxf4+ {[%clk 0:01:07.1]} 28. Kh1 {[%clk 0:00:33.6]} 28... Bg4 {[%clk
0:01:03.8]} 29. Qd4 {[%clk 0:00:16.4]} 29... Qh6 {[%clk 0:00:39.4]} 30. Qxg4+
{[%clk 0:00:16.2]} 30... Kh8 {[%clk 0:00:40]} 31. Nxf3 {[%clk 0:00:15.4]} 31...
Rg8 {[%clk 0:00:40.4]} 32. Qh4 {[%clk 0:00:13.9]} 32... Qe3 {[%clk 0:00:38.5]}
33. Qxf6+ {[%clk 0:00:11.9]} 1-0

[Event "*** Titled Tuesday Blitz"]
[Site "Chess.com"]
[Date "2020.04.14"]
[Round "3"]
[White "lilleper1"]
[Black "Vice64"]
[Result "1-0"]
[WhiteElo "2789"]
[BlackElo "2472"]
[TimeControl "180+1"]
[EndTime "10:27:32 PDT"]
[Termination "lilleper1 won by resignation"]

1. d4 {[%clk 0:03:00.9]} 1... Nf6 {[%clk 0:02:59.6]} 2. c4 {[%clk 0:03:01.3]}
2... e6 {[%clk 0:03:00]} 3. Nf3 {[%clk 0:03:01.8]} 3... b6 {[%clk 0:02:58.7]} 4.
g3 {[%clk 0:03:01.8]} 4... Bb7 {[%clk 0:02:59.2]} 5. Bg2 {[%clk 0:03:01.8]} 5...
Be7 {[%clk 0:02:59.7]} 6. O-O {[%clk 0:03:02.1]} 6... O-O {[%clk 0:03:00.4]} 7.
Nc3 {[%clk 0:03:02.3]} 7... Ne4 {[%clk 0:03:00.7]} 8. Bd2 {[%clk 0:03:02.8]}
8... c5 {[%clk 0:02:52.5]} 9. d5 {[%clk 0:02:58.8]} 9... exd5 {[%clk 0:02:38.5]}
10. cxd5 {[%clk 0:02:55.1]} 10... Nxd2 {[%clk 0:02:38.1]} 11. Nxd2 {[%clk
0:02:54.3]} 11... d6 {[%clk 0:02:38.5]} 12. a4 {[%clk 0:02:52.7]} 12... Nd7
{[%clk 0:02:31.1]} 13. Nc4 {[%clk 0:02:52.3]} 13... a6 {[%clk 0:02:20]} 14. e4
{[%clk 0:02:47.2]} 14... Qc7 {[%clk 0:02:18]} 15. Qd3 {[%clk 0:02:16.8]} 15...
Bf6 {[%clk 0:02:13.9]} 16. f4 {[%clk 0:02:16.7]} 16... Rae8 {[%clk 0:02:04.5]}
17. Rae1 {[%clk 0:02:14.9]} 17... Bd4+ {[%clk 0:01:59.5]} 18. Kh1 {[%clk
0:02:14.4]} 18... Qb8 {[%clk 0:01:26.5]} 19. Bh3 {[%clk 0:02:10.5]} 19... Qc7
{[%clk 0:01:13.5]} 20. Bxd7 {[%clk 0:02:08]} 20... Qxd7 {[%clk 0:01:12.3]} 21.
Nxb6 {[%clk 0:02:08.3]} 21... Qc7 {[%clk 0:01:11.2]} 22. Nc4 {[%clk 0:02:08.2]}
22... Qb8 {[%clk 0:01:05.2]} 23. Ne2 {[%clk 0:02:01.3]} 23... Bf6 {[%clk
0:01:04.7]} 24. b3 {[%clk 0:01:49.3]} 24... Re7 {[%clk 0:01:04]} 25. g4 {[%clk
0:01:31.8]} 25... g6 {[%clk 0:00:57.1]} 26. g5 {[%clk 0:01:28.5]} 26... Bg7
{[%clk 0:00:54.6]} 27. f5 {[%clk 0:01:27.6]} 27... gxf5 {[%clk 0:00:54.8]} 28.
Rxf5 {[%clk 0:01:24.4]} 28... Rfe8 {[%clk 0:00:53.4]} 29. Ng3 {[%clk 0:01:24.2]}
29... Bc8 {[%clk 0:00:51.4]} 30. Rf6 {[%clk 0:01:14.5]} 30... Bxf6 {[%clk
0:00:35.7]} 31. gxf6 {[%clk 0:01:15.4]} 31... Re5 {[%clk 0:00:35.9]} 32. Nxe5
{[%clk 0:01:13.5]} 32... Rxe5 {[%clk 0:00:33.5]} 33. Rg1 {[%clk 0:01:12.7]}
33... Rg5 {[%clk 0:00:32.3]} 34. Qe3 {[%clk 0:01:03.9]} 34... Rg6 {[%clk
0:00:29]} 35. Nh5 {[%clk 0:01:01.2]} 35... Bg4 {[%clk 0:00:25.1]} 36. Nf4 {[%clk
0:00:56]} 36... Rg5 {[%clk 0:00:25.4]} 37. h4 {[%clk 0:00:50.3]} 1-0

[Event "*** Titled Tuesday Blitz"]
[Site "Chess.com"]
[Date "2020.04.14"]
[Round "3"]
[White "Nastya_Rakhmangulova"]
[Black "BAS8892"]
[Result "0-1"]
[WhiteElo "2405"]
[BlackElo "2651"]
[TimeControl "180+1"]
[EndTime "10:27:33 PDT"]
[Termination "BAS8892 won by resignation"]

1. e4 {[%clk 0:03:00.9]} 1... c6 {[%clk 0:02:59.8]} 2. d4 {[%clk 0:03:00.1]}
2... d5 {[%clk 0:02:59.8]} 3. Nc3 {[%clk 0:03:00.7]} 3... dxe4 {[%clk
0:02:59.7]} 4. Nxe4 {[%clk 0:03:01.6]} 4... Bf5 {[%clk 0:02:59.8]} 5. Ng3 {[%clk
0:03:01.7]} 5... Bg6 {[%clk 0:03:00.2]} 6. h4 {[%clk 0:03:02.2]} 6... h6 {[%clk
0:03:00]} 7. Nf3 {[%clk 0:03:02.8]} 7... Nd7 {[%clk 0:02:59.1]} 8. h5 {[%clk
0:03:02.8]} 8... Bh7 {[%clk 0:02:58.9]} 9. Bd3 {[%clk 0:03:03.4]} 9... Bxd3
{[%clk 0:02:58.3]} 10. Qxd3 {[%clk 0:03:04.3]} 10... e6 {[%clk 0:02:58.4]} 11.
Bf4 {[%clk 0:03:03.8]} 11... Qa5+ {[%clk 0:02:58]} 12. Bd2 {[%clk 0:03:04.4]}
12... Qc7 {[%clk 0:02:57.8]} 13. O-O-O {[%clk 0:02:38.3]} 13... Ngf6 {[%clk
0:02:56.5]} 14. Ne4 {[%clk 0:02:35.4]} 14... O-O-O {[%clk 0:02:54.9]} 15. Kb1
{[%clk 0:01:59]} 15... Nxe4 {[%clk 0:02:38.3]} 16. Qxe4 {[%clk 0:01:59.9]} 16...
Nf6 {[%clk 0:02:38.3]} 17. Qe2 {[%clk 0:01:54.9]} 17... Bd6 {[%clk 0:02:37.7]}
18. c4 {[%clk 0:01:47.9]} 18... c5 {[%clk 0:02:36.5]} 19. Bc3 {[%clk 0:01:43.6]}
19... cxd4 {[%clk 0:02:36.3]} 20. Bxd4 {[%clk 0:01:43.2]} 20... a6 {[%clk
0:02:35.7]} 21. c5 {[%clk 0:01:41.6]} 21... Be7 {[%clk 0:02:31.2]} 22. Be5
{[%clk 0:01:40.4]} 22... Qc6 {[%clk 0:02:30.7]} 23. Nd4 {[%clk 0:01:35.5]} 23...
Qe4+ {[%clk 0:02:24.8]} 24. Qxe4 {[%clk 0:01:29.4]} 24... Nxe4 {[%clk
0:02:25.7]} 25. c6 {[%clk 0:00:33.6]} 25... Nxf2 {[%clk 0:02:23]} 26. Rc1 {[%clk
0:00:33.8]} 26... Nxh1 {[%clk 0:02:17.9]} 27. cxb7+ {[%clk 0:00:33.9]} 27...
Kxb7 {[%clk 0:02:17.7]} 28. Rc7+ {[%clk 0:00:34.8]} 28... Kb6 {[%clk 0:02:12.2]}
29. Rc6+ {[%clk 0:00:34.7]} 29... Kb7 {[%clk 0:01:53.6]} 30. Rc7+ {[%clk
0:00:34.4]} 30... Ka8 {[%clk 0:01:53.2]} 31. Rxe7 {[%clk 0:00:26.7]} 31... Rc8
{[%clk 0:01:52.2]} 32. Rxf7 {[%clk 0:00:19.9]} 32... Rhf8 {[%clk 0:01:50.7]} 33.
Rxf8 {[%clk 0:00:13.3]} 33... Rxf8 {[%clk 0:01:50.6]} 34. a3 {[%clk 0:00:13.6]}
34... Rf7 {[%clk 0:01:42.1]} 35. g3 {[%clk 0:00:06.2]} 35... Nf2 {[%clk
0:01:40.5]} 36. Bf4 {[%clk 0:00:06.1]} 36... Nd3 {[%clk 0:01:38.2]} 37. Nxe6
{[%clk 0:00:06.2]} 37... Nxf4 {[%clk 0:01:37.4]} 38. Nxf4 {[%clk 0:00:07.1]}
38... Rf5 {[%clk 0:01:36.9]} 39. Kc2 {[%clk 0:00:06.3]} 39... Rg5 {[%clk
0:01:37.1]} 40. Kd3 {[%clk 0:00:04]} 40... Rxg3+ {[%clk 0:01:36.8]} 41. Ke4
{[%clk 0:00:03.1]} 41... Rb3 {[%clk 0:01:36.1]} 42. Ne6 {[%clk 0:00:03.4]} 42...
Rb5 {[%clk 0:01:34.1]} 43. Nxg7 {[%clk 0:00:02.8]} 43... Rg5 {[%clk 0:01:33.3]}
44. Nf5 {[%clk 0:00:01.2]} 44... Rxh5 {[%clk 0:01:33.1]} 45. Kf4 {[%clk
0:00:01.7]} 45... Rh1 {[%clk 0:01:32.4]} 46. b4 {[%clk 0:00:02.3]} 46... Kb7
{[%clk 0:01:31.7]} 0-1

[Event "*** Titled Tuesday Blitz"]
[Site "Chess.com"]
[Date "2020.04.14"]
[Round "3"]
[White "Joshukid"]
[Black "Everyfishknows"]
[Result "1-0"]
[WhiteElo "2578"]
[BlackElo "2356"]
[TimeControl "180+1"]
[EndTime "10:27:33 PDT"]
[Termination "Joshukid won on time"]

1. Nf3 {[%clk 0:03:00.9]} 1... Nf6 {[%clk 0:02:59.2]} 2. c4 {[%clk 0:02:57.5]}
2... g6 {[%clk 0:02:58.8]} 3. b3 {[%clk 0:02:57.4]} 3... Bg7 {[%clk 0:02:58.6]}
4. Bb2 {[%clk 0:02:57.3]} 4... O-O {[%clk 0:02:57.4]} 5. g3 {[%clk 0:02:56.4]}
5... d6 {[%clk 0:02:56.9]} 6. d4 {[%clk 0:02:54.6]} 6... Nbd7 {[%clk 0:02:56.2]}
7. Bg2 {[%clk 0:02:51.5]} 7... c6 {[%clk 0:02:56.2]} 8. O-O {[%clk 0:02:50.3]}
8... Qc7 {[%clk 0:02:49.5]} 9. Nc3 {[%clk 0:02:49.1]} 9... Re8 {[%clk
0:02:49.4]} 10. e3 {[%clk 0:02:46.7]} 10... e5 {[%clk 0:02:48.6]} 11. Rc1 {[%clk
0:02:47.2]} 11... Nf8 {[%clk 0:02:40.9]} 12. b4 {[%clk 0:02:46.6]} 12... e4
{[%clk 0:02:32.4]} 13. Nd2 {[%clk 0:02:46.1]} 13... Bf5 {[%clk 0:02:32.3]} 14.
d5 {[%clk 0:02:28.5]} 14... h5 {[%clk 0:02:15]} 15. dxc6 {[%clk 0:02:20.5]}
15... bxc6 {[%clk 0:02:13.8]} 16. b5 {[%clk 0:02:19.9]} 16... h4 {[%clk
0:01:49.3]} 17. bxc6 {[%clk 0:02:01.1]} 17... Qxc6 {[%clk 0:01:41.8]} 18. Nb3
{[%clk 0:02:01.2]} 18... Bg4 {[%clk 0:01:21.1]} 19. Qc2 {[%clk 0:01:17.6]} 19...
Qxc4 {[%clk 0:01:11.6]} 20. Nxe4 {[%clk 0:01:05.9]} 20... Qxc2 {[%clk
0:01:11.7]} 21. Nxf6+ {[%clk 0:01:05.7]} 21... Bxf6 {[%clk 0:01:12.6]} 22. Rxc2
{[%clk 0:01:05.7]} 22... Bxb2 {[%clk 0:00:26.5]} 23. Bxa8 {[%clk 0:01:03.8]}
23... Be5 {[%clk 0:00:18.7]} 24. Bc6 {[%clk 0:00:54.2]} 24... Rc8 {[%clk
0:00:16.7]} 25. Rfc1 {[%clk 0:00:54.7]} 25... Ne6 {[%clk 0:00:15.7]} 26. Bd7
{[%clk 0:00:47.9]} 26... Rd8 {[%clk 0:00:13.6]} 27. Rc8 {[%clk 0:00:46.5]} 27...
Rxc8 {[%clk 0:00:05.5]} 28. Rxc8+ {[%clk 0:00:47.4]} 28... Kg7 {[%clk
0:00:04.9]} 29. Nd4 {[%clk 0:00:47.7]} 29... Nxd4 {[%clk 0:00:04.2]} 30. Bxg4
{[%clk 0:00:48.1]} 30... Nb5 {[%clk 0:00:01.5]} 31. f4 {[%clk 0:00:46.9]} 31...
Bf6 {[%clk 0:00:01.6]} 32. Bd7 {[%clk 0:00:47.3]} 1-0

[Event "*** Titled Tuesday Blitz"]
[Site "Chess.com"]
[Date "2020.04.14"]
[Round "3"]
[White "jwillz14"]
[Black "Harut-1998"]
[Result "1-0"]
[WhiteElo "2388"]
[BlackElo "2576"]
[TimeControl "180+1"]
[EndTime "10:27:34 PDT"]
[Termination "jwillz14 won on time"]

1. Nf3 {[%clk 0:03:00.9]} 1... d5 {[%clk 0:02:58.7]} 2. g3 {[%clk 0:03:01.8]}
2... Nf6 {[%clk 0:02:58.4]} 3. Bg2 {[%clk 0:03:02.7]} 3... c5 {[%clk 0:02:52.9]}
4. O-O {[%clk 0:03:03.6]} 4... Nc6 {[%clk 0:02:53.2]} 5. d4 {[%clk 0:03:04.3]}
5... Bf5 {[%clk 0:02:48.5]} 6. c4 {[%clk 0:03:03.6]} 6... dxc4 {[%clk
0:02:27.6]} 7. Qa4 {[%clk 0:03:03.2]} 7... cxd4 {[%clk 0:02:11.1]} 8. Nxd4
{[%clk 0:02:48]} 8... Qxd4 {[%clk 0:02:06.6]} 9. Bxc6+ {[%clk 0:02:47.5]} 9...
Bd7 {[%clk 0:02:00.7]} 10. Rd1 {[%clk 0:02:42.3]} 10... Bxc6 {[%clk 0:01:55.3]}
11. Qxc6+ {[%clk 0:02:41.1]} 11... bxc6 {[%clk 0:01:56.2]} 12. Rxd4 {[%clk
0:02:40.9]} 12... e6 {[%clk 0:01:31.5]} 13. Rxc4 {[%clk 0:02:39]} 13... Rc8
{[%clk 0:01:28.2]} 14. Nc3 {[%clk 0:02:36]} 14... Nd5 {[%clk 0:01:24.1]} 15. Ra4
{[%clk 0:02:29.1]} 15... Nxc3 {[%clk 0:01:18.5]} 16. bxc3 {[%clk 0:02:30]} 16...
Bc5 {[%clk 0:01:18.3]} 17. Rc4 {[%clk 0:02:30.3]} 17... Bb6 {[%clk 0:01:14.2]}
18. a4 {[%clk 0:02:25.2]} 18... Ke7 {[%clk 0:01:06.8]} 19. a5 {[%clk 0:02:17.4]}
19... Bd8 {[%clk 0:01:03.5]} 20. Be3 {[%clk 0:02:11.2]} 20... a6 {[%clk
0:00:58.6]} 21. Bb6 {[%clk 0:02:02.3]} 21... h5 {[%clk 0:00:50.4]} 22. Rd1
{[%clk 0:01:55.2]} 22... Bc7 {[%clk 0:00:36.6]} 23. Bc5+ {[%clk 0:01:34.8]}
23... Kf6 {[%clk 0:00:32.6]} 24. Bd4+ {[%clk 0:01:29.2]} 24... Kg6 {[%clk
0:00:25.4]} 25. Bb6 {[%clk 0:01:27.5]} 25... Be5 {[%clk 0:00:20.1]} 26. Rd7
{[%clk 0:01:26]} 26... h4 {[%clk 0:00:14.2]} 27. Kg2 {[%clk 0:01:25]} 27... h3+
{[%clk 0:00:13.8]} 28. Kf3 {[%clk 0:01:24.6]} 28... Bb8 {[%clk 0:00:11]} 29.
Rg4+ {[%clk 0:01:18.6]} 29... Kf6 {[%clk 0:00:08]} 30. Bd4+ {[%clk 0:01:18.1]}
30... e5 {[%clk 0:00:05.1]} 31. Bb6 {[%clk 0:01:13.1]} 31... g5 {[%clk
0:00:02.9]} 32. Rc4 {[%clk 0:01:10.5]} 32... Kg6 {[%clk 0:00:03]} 33. e4 {[%clk
0:01:03]} 33... f6 {[%clk 0:00:02.9]} 34. Ba7 {[%clk 0:00:54.5]} 34... Bxa7
{[%clk 0:00:01.5]} 35. Rxa7 {[%clk 0:00:55.4]} 1-0

[Event "*** Titled Tuesday Blitz"]
[Site "Chess.com"]
[Date "2020.04.14"]
[Round "3"]
[White "BIG_Pirate"]
[Black "Gennady_Kozlov"]
[Result "0-1"]
[WhiteElo "2364"]
[BlackElo "2585"]
[TimeControl "180+1"]
[EndTime "10:27:34 PDT"]
[Termination "Gennady_Kozlov won by resignation"]

1. Nf3 {[%clk 0:03:00.9]} 1... d5 {[%clk 0:02:58.9]} 2. c4 {[%clk 0:03:01]} 2...
c6 {[%clk 0:02:58.3]} 3. g3 {[%clk 0:03:01.1]} 3... Nf6 {[%clk 0:02:58.2]} 4.
Bg2 {[%clk 0:03:01.1]} 4... Bf5 {[%clk 0:02:58.8]} 5. cxd5 {[%clk 0:03:00.2]}
5... cxd5 {[%clk 0:02:58.6]} 6. Qb3 {[%clk 0:03:00.4]} 6... Qb6 {[%clk
0:02:56.9]} 7. Qxb6 {[%clk 0:02:59.8]} 7... axb6 {[%clk 0:02:57.8]} 8. Nc3
{[%clk 0:03:00.2]} 8... e6 {[%clk 0:02:57.8]} 9. d3 {[%clk 0:03:00.2]} 9... h6
{[%clk 0:02:57.6]} 10. O-O {[%clk 0:02:59.9]} 10... Nc6 {[%clk 0:02:58.2]} 11.
a3 {[%clk 0:02:53.8]} 11... Bc5 {[%clk 0:02:57.4]} 12. b4 {[%clk 0:02:39]} 12...
Bxb4 {[%clk 0:02:42.7]} 13. Nb5 {[%clk 0:01:38.8]} 13... Kd7 {[%clk 0:02:34.6]}
14. Bb2 {[%clk 0:01:09.7]} 14... Bc5 {[%clk 0:02:31.1]} 15. Nfd4 {[%clk
0:01:08.3]} 15... Nxd4 {[%clk 0:02:30.3]} 16. Nxd4 {[%clk 0:01:08]} 16... Bg4
{[%clk 0:02:27.2]} 17. e4 {[%clk 0:00:46.6]} 17... Ra4 {[%clk 0:02:21.7]} 18.
Nb3 {[%clk 0:00:32.8]} 18... dxe4 {[%clk 0:02:13.5]} 19. dxe4 {[%clk 0:00:29]}
19... Nxe4 {[%clk 0:01:58.1]} 20. Nxc5+ {[%clk 0:00:27.3]} 20... Nxc5 {[%clk
0:01:56]} 21. Bxg7 {[%clk 0:00:27.1]} 21... Rh7 {[%clk 0:01:53.5]} 22. Be5
{[%clk 0:00:23.3]} 22... f5 {[%clk 0:01:40.7]} 23. h3 {[%clk 0:00:23.2]} 23...
Be2 {[%clk 0:01:39.2]} 24. Rfe1 {[%clk 0:00:23.7]} 24... Bb5 {[%clk 0:01:35.8]}
25. Red1+ {[%clk 0:00:23.6]} 25... Ke7 {[%clk 0:01:35.9]} 26. Bd6+ {[%clk
0:00:19.5]} 26... Kf6 {[%clk 0:01:35.1]} 27. Bxc5 {[%clk 0:00:20.4]} 27... bxc5
{[%clk 0:01:34.7]} 28. Rd6 {[%clk 0:00:18.3]} 28... Re7 {[%clk 0:01:26.3]} 29.
Rb6 {[%clk 0:00:18]} 29... Ba6 {[%clk 0:01:26.2]} 30. Rc1 {[%clk 0:00:16.2]}
30... c4 {[%clk 0:01:25.7]} 31. Rcb1 {[%clk 0:00:12.9]} 31... Rxa3 {[%clk
0:01:24.7]} 32. Bxb7 {[%clk 0:00:12.7]} 32... Bxb7 {[%clk 0:01:24.1]} 33. Rxb7
{[%clk 0:00:13.6]} 33... Rxb7 {[%clk 0:01:24.1]} 34. Rxb7 {[%clk 0:00:14.5]}
34... Ke5 {[%clk 0:01:22.8]} 35. Kg2 {[%clk 0:00:13.1]} 35... c3 {[%clk
0:01:20.7]} 36. Rc7 {[%clk 0:00:12.3]} 36... Ke4 {[%clk 0:01:20.7]} 37. Rc6
{[%clk 0:00:09.9]} 37... e5 {[%clk 0:01:20.5]} 38. g4 {[%clk 0:00:10.1]} 38...
f4 {[%clk 0:01:17.9]} 39. Rxh6 {[%clk 0:00:09.4]} 39... c2 {[%clk 0:01:18]} 40.
Rc6 {[%clk 0:00:09]} 40... Kd3 {[%clk 0:01:17.9]} 41. Rd6+ {[%clk 0:00:08.5]}
41... Ke2 {[%clk 0:01:16.8]} 42. Rc6 {[%clk 0:00:07.5]} 42... Kd2 {[%clk
0:01:17.2]} 43. Rd6+ {[%clk 0:00:07.6]} 43... Rd3 {[%clk 0:01:17.1]} 0-1

[Event "*** Titled Tuesday Blitz"]
[Site "Chess.com"]
[Date "2020.04.14"]
[Round "3"]
[White "AlexOstrovskiy"]
[Black "MrTattaglia"]
[Result "0-1"]
[WhiteElo "2639"]
[BlackElo "2866"]
[TimeControl "180+1"]
[EndTime "10:27:36 PDT"]
[Termination "MrTattaglia won on time"]

1. d4 {[%clk 0:03:00]} 1... Nf6 {[%clk 0:02:54.3]} 2. Bg5 {[%clk 0:02:59.5]}
2... d5 {[%clk 0:02:53.7]} 3. Bxf6 {[%clk 0:02:58.6]} 3... gxf6 {[%clk
0:02:51.3]} 4. e3 {[%clk 0:02:58.1]} 4... c5 {[%clk 0:02:50.5]} 5. dxc5 {[%clk
0:02:57.4]} 5... e6 {[%clk 0:02:50.4]} 6. Nf3 {[%clk 0:02:57.7]} 6... Bxc5
{[%clk 0:02:49.4]} 7. Be2 {[%clk 0:02:57.7]} 7... Nc6 {[%clk 0:02:43.5]} 8. O-O
{[%clk 0:02:56.3]} 8... Qe7 {[%clk 0:02:37.8]} 9. c4 {[%clk 0:02:49.1]} 9...
dxc4 {[%clk 0:02:37.1]} 10. Bxc4 {[%clk 0:02:40.6]} 10... Bd7 {[%clk 0:02:37.4]}
11. Nc3 {[%clk 0:02:23]} 11... O-O-O {[%clk 0:02:36.9]} 12. Rc1 {[%clk
0:02:14.6]} 12... Kb8 {[%clk 0:02:35.8]} 13. Qe2 {[%clk 0:02:15.1]} 13... Ne5
{[%clk 0:02:07.2]} 14. Nxe5 {[%clk 0:01:55.9]} 14... fxe5 {[%clk 0:02:08.1]} 15.
a3 {[%clk 0:01:56.6]} 15... f5 {[%clk 0:02:06]} 16. b4 {[%clk 0:01:54.2]} 16...
Bb6 {[%clk 0:02:05.2]} 17. Rfd1 {[%clk 0:01:48.9]} 17... h5 {[%clk 0:02:01.4]}
18. Bb5 {[%clk 0:01:43.7]} 18... Bc8 {[%clk 0:01:58.1]} 19. Na4 {[%clk
0:01:41.7]} 19... Bc7 {[%clk 0:01:53.7]} 20. e4 {[%clk 0:01:19.7]} 20... h4
{[%clk 0:01:50.6]} 21. h3 {[%clk 0:01:11.4]} 21... Rhg8 {[%clk 0:01:47.8]} 22.
Rxd8 {[%clk 0:01:09.8]} 22... Qxd8 {[%clk 0:01:46]} 23. Rd1 {[%clk 0:00:50.2]}
23... Qg5 {[%clk 0:01:45.3]} 24. Qf3 {[%clk 0:00:44.8]} 24... b6 {[%clk
0:01:40.2]} 25. Bc6 {[%clk 0:00:42.4]} 25... Rd8 {[%clk 0:01:38.1]} 26. Rxd8
{[%clk 0:00:34.4]} 26... Qxd8 {[%clk 0:01:39]} 27. Nc3 {[%clk 0:00:28.6]} 27...
a6 {[%clk 0:01:38.8]} 28. Qe2 {[%clk 0:00:22.6]} 28... Qd4 {[%clk 0:01:34.9]}
29. Qe3 {[%clk 0:00:18.3]} 29... Qc4 {[%clk 0:01:29.9]} 30. Ba4 {[%clk
0:00:15.2]} 30... b5 {[%clk 0:01:26.7]} 31. Bd1 {[%clk 0:00:13.6]} 31... f4
{[%clk 0:01:26.2]} 32. Qd2 {[%clk 0:00:13.8]} 32... Bb6 {[%clk 0:01:20.6]} 33.
Bg4 {[%clk 0:00:13]} 33... Bb7 {[%clk 0:01:10.6]} 34. Bf3 {[%clk 0:00:09.4]}
34... Ka7 {[%clk 0:01:09]} 35. Qe1 {[%clk 0:00:05.7]} 35... Qd3 {[%clk 0:01:06]}
36. Nd1 {[%clk 0:00:02.8]} 36... Qxa3 {[%clk 0:01:05.6]} 37. Qd2 {[%clk
0:00:01.1]} 37... Bd4 {[%clk 0:01:04.4]} 38. Qe1 {[%clk 0:00:01.5]} 38... Qd3
{[%clk 0:01:02.2]} 0-1

[Event "*** Titled Tuesday Blitz"]
[Site "Chess.com"]
[Date "2020.04.14"]
[Round "3"]
[White "aa175"]
[Black "Alex_Molchanov"]
[Result "1-0"]
[WhiteElo "2374"]
[BlackElo "2556"]
[TimeControl "180+1"]
[EndTime "10:27:36 PDT"]
[Termination "aa175 won by resignation"]

1. d4 {[%clk 0:03:00.9]} 1... Nf6 {[%clk 0:02:56.5]} 2. Bf4 {[%clk 0:03:00.9]}
2... d5 {[%clk 0:02:55]} 3. e3 {[%clk 0:03:01.3]} 3... c5 {[%clk 0:02:55.5]} 4.
Nf3 {[%clk 0:03:01.5]} 4... Nc6 {[%clk 0:02:55.6]} 5. Nbd2 {[%clk 0:03:01.6]}
5... cxd4 {[%clk 0:02:44.6]} 6. exd4 {[%clk 0:03:01.7]} 6... g6 {[%clk
0:02:40.1]} 7. c3 {[%clk 0:03:01.8]} 7... Bg7 {[%clk 0:02:40.4]} 8. Bd3 {[%clk
0:03:02.1]} 8... O-O {[%clk 0:02:40.6]} 9. Qe2 {[%clk 0:03:00.3]} 9... Bg4
{[%clk 0:02:29.3]} 10. h3 {[%clk 0:03:00.2]} 10... Bxf3 {[%clk 0:02:29.2]} 11.
Nxf3 {[%clk 0:03:00.9]} 11... e6 {[%clk 0:02:28.2]} 12. O-O-O {[%clk 0:02:50.2]}
12... a6 {[%clk 0:02:11.7]} 13. g4 {[%clk 0:02:50.2]} 13... b5 {[%clk
0:02:11.5]} 14. Ne5 {[%clk 0:02:23]} 14... Rc8 {[%clk 0:01:40.3]} 15. h4 {[%clk
0:02:00.5]} 15... Nxd4 {[%clk 0:01:34.7]} 16. Qe3 {[%clk 0:01:47.5]} 16... Nc6
{[%clk 0:01:32.6]} 17. Nxc6 {[%clk 0:01:19.6]} 17... Rxc6 {[%clk 0:01:33.5]} 18.
h5 {[%clk 0:01:17.4]} 18... d4 {[%clk 0:01:25.9]} 19. Qh3 {[%clk 0:01:14.8]}
19... dxc3 {[%clk 0:01:23]} 20. hxg6 {[%clk 0:01:15]} 20... cxb2+ {[%clk
0:01:16.6]} 21. Kb1 {[%clk 0:01:14.8]} 21... Qd4 {[%clk 0:00:46.8]} 22. gxf7+
{[%clk 0:01:02.6]} 22... Rxf7 {[%clk 0:00:16.7]} 23. Bxh7+ {[%clk 0:01:02.4]}
23... Nxh7 {[%clk 0:00:16.3]} 24. Qxh7+ {[%clk 0:01:02.5]} 24... Kf8 {[%clk
0:00:16.8]} 25. Rxd4 {[%clk 0:01:01]} 25... Bxd4 {[%clk 0:00:16.3]} 26. Bh6+
{[%clk 0:01:00.3]} 26... Ke7 {[%clk 0:00:16.2]} 27. Bg5+ {[%clk 0:00:59.9]}
27... Ke8 {[%clk 0:00:13.8]} 28. Qg8+ {[%clk 0:00:59]} 28... Rf8 {[%clk
0:00:14.1]} 29. Qg6+ {[%clk 0:00:59.4]} 29... Kd7 {[%clk 0:00:14.5]} 30. Rd1
{[%clk 0:00:55.2]} 30... e5 {[%clk 0:00:13.6]} 31. Qg7+ {[%clk 0:00:53.8]} 31...
Ke6 {[%clk 0:00:09.7]} 32. Qxf8 {[%clk 0:00:52.6]} 32... Kd5 {[%clk 0:00:09.3]}
33. Qd8+ {[%clk 0:00:52.2]} 33... Kc4 {[%clk 0:00:09.5]} 34. Qg8+ {[%clk
0:00:51.5]} 34... Kc5 {[%clk 0:00:08.7]} 35. Be3 {[%clk 0:00:51]} 35... Rd6
{[%clk 0:00:08.4]} 36. Bxd4+ {[%clk 0:00:50.6]} 1-0